[Event "*** SCC Grand Prix: Titled Tuesday Blitz"]
[Site "Chess.com"]
[Date "2020.06.02"]
[Round "10"]
[White "dianamirza"]
[Black "cukin84"]
[Result "1-0"]
[WhiteElo "2037"]
[BlackElo "2169"]
[TimeControl "180+1"]
[EndTime "11:58:51 PDT"]
[Termination "dianamirza won by checkmate"]

1. d4 {[%clk 0:02:47.1]} 1... f5 {[%clk 0:02:59.2]} 2. Nf3 {[%clk 0:02:45.8]}
2... Nf6 {[%clk 0:02:58.8]} 3. e3 {[%clk 0:02:46.4]} 3... d6 {[%clk 0:02:58.7]}
4. Bd3 {[%clk 0:02:47.3]} 4... g6 {[%clk 0:02:58.4]} 5. b3 {[%clk 0:02:47.4]}
5... Bg7 {[%clk 0:02:58.7]} 6. Bb2 {[%clk 0:02:48.3]} 6... O-O {[%clk
0:02:58.8]} 7. Nbd2 {[%clk 0:02:49.2]} 7... Qe8 {[%clk 0:02:58.1]} 8. O-O {[%clk
0:02:50.1]} 8... Nc6 {[%clk 0:02:57.6]} 9. e4 {[%clk 0:02:47.3]} 9... fxe4
{[%clk 0:02:55.7]} 10. Nxe4 {[%clk 0:02:48.2]} 10... Nxe4 {[%clk 0:02:55.3]} 11.
Bxe4 {[%clk 0:02:49.1]} 11... d5 {[%clk 0:02:46]} 12. Bxd5+ {[%clk 0:02:47.3]}
12... e6 {[%clk 0:02:44.1]} 13. Bc4 {[%clk 0:02:42.8]} 13... Kh8 {[%clk
0:02:31.8]} 14. Rb1 {[%clk 0:02:37]} 14... Ne7 {[%clk 0:02:26.7]} 15. Ne5 {[%clk
0:02:36.5]} 15... c6 {[%clk 0:02:11.2]} 16. f4 {[%clk 0:02:28.8]} 16... a5
{[%clk 0:02:06]} 17. a4 {[%clk 0:02:27.5]} 17... Nf5 {[%clk 0:02:01.8]} 18. Qf3
{[%clk 0:02:20.1]} 18... Qe7 {[%clk 0:01:51.3]} 19. Qh3 {[%clk 0:02:16.4]} 19...
Kg8 {[%clk 0:01:37.4]} 20. g4 {[%clk 0:02:11.5]} 20... Nd6 {[%clk 0:01:33.9]}
21. Bd3 {[%clk 0:02:07.1]} 21... b5 {[%clk 0:01:31]} 22. Nxc6 {[%clk 0:02:01.9]}
22... Qc7 {[%clk 0:01:23.2]} 23. axb5 {[%clk 0:02:00]} 23... Bb7 {[%clk
0:01:10.4]} 24. Ne5 {[%clk 0:01:52.9]} 24... Be4 {[%clk 0:01:01.1]} 25. Qe3
{[%clk 0:01:48.8]} 25... Bxd3 {[%clk 0:00:59.5]} 26. Qxd3 {[%clk 0:01:49.7]}
26... Qb7 {[%clk 0:00:56.7]} 27. c4 {[%clk 0:01:46.1]} 27... a4 {[%clk
0:00:54.3]} 28. Ba3 {[%clk 0:01:30]} 28... Rfd8 {[%clk 0:00:49.7]} 29. bxa4
{[%clk 0:01:11.3]} 29... Rxa4 {[%clk 0:00:48.4]} 30. Qb3 {[%clk 0:01:09.4]}
30... Raa8 {[%clk 0:00:43.4]} 31. Nc6 {[%clk 0:01:04.5]} 31... Rd7 {[%clk
0:00:40.5]} 32. c5 {[%clk 0:00:59.5]} 32... Nc8 {[%clk 0:00:24.4]} 33. Qxe6+
{[%clk 0:00:53.6]} 33... Kh8 {[%clk 0:00:23.5]} 34. Bb2 {[%clk 0:00:45.1]} 34...
Na7 {[%clk 0:00:22.1]} 35. Ra1 {[%clk 0:00:29.6]} 35... Nxc6 {[%clk 0:00:21]}
36. Rxa8+ {[%clk 0:00:26.2]} 36... Qxa8 {[%clk 0:00:20.9]} 37. Qxd7 {[%clk
0:00:25.5]} 37... Nb4 {[%clk 0:00:19.8]} 38. c6 {[%clk 0:00:21.5]} 38... Nd3
{[%clk 0:00:18.7]} 39. c7 {[%clk 0:00:17.1]} 39... h5 {[%clk 0:00:12.7]} 40.
Qd8+ {[%clk 0:00:16.8]} 40... Qxd8 {[%clk 0:00:12.1]} 41. cxd8=Q+ {[%clk
0:00:17.7]} 41... Kh7 {[%clk 0:00:12.4]} 42. b6 {[%clk 0:00:17.5]} 42... Nxb2
{[%clk 0:00:11.3]} 43. b7 {[%clk 0:00:17.7]} 43... Nc4 {[%clk 0:00:10.6]} 44.
b8=Q {[%clk 0:00:16.8]} 44... Ne3 {[%clk 0:00:10.5]} 45. Qg8+ {[%clk 0:00:15.8]}
45... Kh6 {[%clk 0:00:10.1]} 46. Qxg7+ {[%clk 0:00:16]} 46... Kxg7 {[%clk
0:00:09.6]} 47. Qe5+ {[%clk 0:00:16.9]} 47... Kf7 {[%clk 0:00:08.9]} 48. Qxe3
{[%clk 0:00:17.8]} 48... hxg4 {[%clk 0:00:08.9]} 49. Rc1 {[%clk 0:00:17.6]}
49... Kg7 {[%clk 0:00:09.1]} 50. Qe5+ {[%clk 0:00:14.8]} 50... Kh6 {[%clk
0:00:09.4]} 51. Qg5+ {[%clk 0:00:14.6]} 51... Kg7 {[%clk 0:00:09.7]} 52. Rc7+
{[%clk 0:00:15.5]} 52... Kf8 {[%clk 0:00:10]} 53. Qd8# {[%clk 0:00:15.6]} 1-0

[Event "*** SCC Grand Prix: Titled Tuesday Blitz"]
[Site "Chess.com"]
[Date "2020.06.02"]
[Round "10"]
[White "Baron_von_Koenig"]
[Black "Playgood28"]
[Result "1-0"]
[WhiteElo "2435"]
[BlackElo "2290"]
[TimeControl "180+1"]
[EndTime "11:58:55 PDT"]
[Termination "Baron_von_Koenig won on time"]

1. Nc3 {[%clk 0:03:00.9]} 1... d6 {[%clk 0:02:56.1]} 2. f4 {[%clk 0:03:00.2]}
2... f5 {[%clk 0:02:55.3]} 3. e4 {[%clk 0:02:56.1]} 3... fxe4 {[%clk 0:02:54.1]}
4. d3 {[%clk 0:02:56.4]} 4... e3 {[%clk 0:02:45]} 5. Bxe3 {[%clk 0:02:55.4]}
5... Nf6 {[%clk 0:02:44.4]} 6. Ne4 {[%clk 0:02:51.2]} 6... Nc6 {[%clk
0:02:37.9]} 7. Nxf6+ {[%clk 0:02:40.3]} 7... exf6 {[%clk 0:02:36.2]} 8. d4
{[%clk 0:02:40.6]} 8... d5 {[%clk 0:02:34]} 9. Bd3 {[%clk 0:02:36.7]} 9... Qe7
{[%clk 0:02:07.1]} 10. Kf2 {[%clk 0:02:36.2]} 10... g6 {[%clk 0:02:05.2]} 11. f5
{[%clk 0:02:29]} 11... Bxf5 {[%clk 0:01:55.4]} 12. Bxf5 {[%clk 0:02:28.5]} 12...
gxf5 {[%clk 0:01:55.5]} 13. Qh5+ {[%clk 0:02:29]} 13... Qf7 {[%clk 0:01:55.4]}
14. Qxf5 {[%clk 0:02:28.9]} 14... Qd7 {[%clk 0:01:45.4]} 15. Qxd7+ {[%clk
0:02:27.7]} 15... Kxd7 {[%clk 0:01:45.2]} 16. Ne2 {[%clk 0:02:20.9]} 16... Bd6
{[%clk 0:01:44.9]} 17. c3 {[%clk 0:02:20.5]} 17... Ne7 {[%clk 0:01:43.3]} 18.
Bf4 {[%clk 0:02:19.4]} 18... Nf5 {[%clk 0:01:40.2]} 19. g4 {[%clk 0:02:14.9]}
19... Nh4 {[%clk 0:01:36.8]} 20. Kg3 {[%clk 0:02:07.5]} 20... Ng6 {[%clk
0:01:36.2]} 21. Bxd6 {[%clk 0:02:05.8]} 21... Kxd6 {[%clk 0:01:35]} 22. Rhf1
{[%clk 0:02:06.4]} 22... Raf8 {[%clk 0:01:32.9]} 23. Rf5 {[%clk 0:02:02.1]}
23... Ne7 {[%clk 0:01:27.1]} 24. Rf3 {[%clk 0:02:00.9]} 24... h5 {[%clk
0:01:14.6]} 25. Raf1 {[%clk 0:01:47]} 25... hxg4 {[%clk 0:01:13.9]} 26. Rxf6+
{[%clk 0:01:46.1]} 26... Rxf6 {[%clk 0:01:13.6]} 27. Rxf6+ {[%clk 0:01:46.7]}
27... Kd7 {[%clk 0:01:12.5]} 28. Nf4 {[%clk 0:01:33]} 28... Rh7 {[%clk
0:01:03.6]} 29. Rf8 {[%clk 0:00:53.1]} 29... c6 {[%clk 0:00:59.9]} 30. b4 {[%clk
0:00:52.4]} 30... a6 {[%clk 0:00:50.4]} 31. a4 {[%clk 0:00:52.1]} 31... Rg7
{[%clk 0:00:46.4]} 32. a5 {[%clk 0:00:46.3]} 32... Rg5 {[%clk 0:00:42.7]} 33.
Rf7 {[%clk 0:00:41]} 33... Ke8 {[%clk 0:00:40.6]} 34. Rh7 {[%clk 0:00:38.1]}
34... Nf5+ {[%clk 0:00:32.1]} 35. Kg2 {[%clk 0:00:38.2]} 35... Ne7 {[%clk
0:00:24.1]} 36. Nd3 {[%clk 0:00:31.7]} 36... Rf5 {[%clk 0:00:21.3]} 37. Ne5
{[%clk 0:00:27.3]} 37... Kf8 {[%clk 0:00:19.9]} 38. Kg3 {[%clk 0:00:22.2]} 38...
Rf1 {[%clk 0:00:15.8]} 39. Nxg4 {[%clk 0:00:18.8]} 39... Rc1 {[%clk 0:00:14.3]}
40. Kf4 {[%clk 0:00:18.9]} 40... Rxc3 {[%clk 0:00:13.9]} 41. Ke5 {[%clk
0:00:18.7]} 41... Rf3 {[%clk 0:00:12.9]} 42. Nf6 {[%clk 0:00:18.3]} 42... Ng6+
{[%clk 0:00:10.9]} 43. Ke6 {[%clk 0:00:18.6]} 43... Nf4+ {[%clk 0:00:10.3]} 44.
Kd6 {[%clk 0:00:18.8]} 44... Ng6 {[%clk 0:00:09.2]} 45. Nd7+ {[%clk 0:00:18.2]}
45... Kg8 {[%clk 0:00:08.3]} 46. Rh6 {[%clk 0:00:18.2]} 46... Kg7 {[%clk
0:00:01.6]} 47. Rh5 {[%clk 0:00:18.5]} 1-0

[Event "*** SCC Grand Prix: Titled Tuesday Blitz"]
[Site "Chess.com"]
[Date "2020.06.02"]
[Round "10"]
[White "dolynachess"]
[Black "antoszu"]
[Result "1-0"]
[WhiteElo "2362"]
[BlackElo "2511"]
[TimeControl "180+1"]
[EndTime "11:58:58 PDT"]
[Termination "dolynachess won by resignation"]

1. d4 {[%clk 0:03:00.9]} 1... Nf6 {[%clk 0:02:58.3]} 2. c4 {[%clk 0:03:00.4]}
2... e6 {[%clk 0:02:58.6]} 3. g3 {[%clk 0:02:59.3]} 3... d5 {[%clk 0:02:58.5]}
4. Bg2 {[%clk 0:02:59.1]} 4... Be7 {[%clk 0:02:59.4]} 5. Nf3 {[%clk 0:02:59.3]}
5... O-O {[%clk 0:03:00.1]} 6. O-O {[%clk 0:02:59.7]} 6... c6 {[%clk 0:03:00.6]}
7. Nc3 {[%clk 0:02:58]} 7... b6 {[%clk 0:02:59.6]} 8. Qd3 {[%clk 0:02:57.4]}
8... Bb7 {[%clk 0:02:58.7]} 9. Rd1 {[%clk 0:02:56.5]} 9... Nbd7 {[%clk
0:02:58.4]} 10. e4 {[%clk 0:02:56.1]} 10... Nxe4 {[%clk 0:02:58.2]} 11. Nxe4
{[%clk 0:02:57]} 11... dxe4 {[%clk 0:02:59.1]} 12. Qxe4 {[%clk 0:02:57.5]} 12...
Nf6 {[%clk 0:02:59.8]} 13. Qe2 {[%clk 0:02:57.4]} 13... Qc8 {[%clk 0:02:59.4]}
14. Bf4 {[%clk 0:02:49.4]} 14... c5 {[%clk 0:02:59]} 15. d5 {[%clk 0:02:44.9]}
15... Re8 {[%clk 0:02:49.6]} 16. dxe6 {[%clk 0:01:28.6]} 16... Qxe6 {[%clk
0:02:42.7]} 17. Qxe6 {[%clk 0:01:27.8]} 17... fxe6 {[%clk 0:02:43.6]} 18. Ng5
{[%clk 0:01:20]} 18... Bxg2 {[%clk 0:02:40.5]} 19. Kxg2 {[%clk 0:01:20.9]} 19...
Bf8 {[%clk 0:02:23.3]} 20. Re1 {[%clk 0:01:02.7]} 20... Re7 {[%clk 0:02:12.2]}
21. Rxe6 {[%clk 0:00:53.6]} 21... Rd7 {[%clk 0:02:07.5]} 22. Rae1 {[%clk
0:00:49.2]} 22... h6 {[%clk 0:01:36.3]} 23. Ne4 {[%clk 0:00:43.4]} 23... Nxe4
{[%clk 0:01:33.7]} 24. R1xe4 {[%clk 0:00:41.6]} 24... Kf7 {[%clk 0:01:34.2]} 25.
Rc6 {[%clk 0:00:40.2]} 25... Rad8 {[%clk 0:01:30.1]} 26. h4 {[%clk 0:00:38.1]}
26... Rd3 {[%clk 0:01:20.9]} 27. h5 {[%clk 0:00:30.2]} 27... R8d7 {[%clk
0:01:16.9]} 28. Rc8 {[%clk 0:00:22.6]} 28... Rd8 {[%clk 0:01:13.4]} 29. Rxd8
{[%clk 0:00:20.4]} 29... Rxd8 {[%clk 0:01:14.3]} 30. Kf3 {[%clk 0:00:20]} 30...
Rd1 {[%clk 0:01:11.5]} 31. Re2 {[%clk 0:00:18.8]} 31... Rd3+ {[%clk 0:00:55.9]}
32. Re3 {[%clk 0:00:17.4]} 32... Rd1 {[%clk 0:00:53.2]} 33. Ra3 {[%clk
0:00:15.9]} 33... Rd7 {[%clk 0:00:45.3]} 34. Bb8 {[%clk 0:00:14.4]} 34... a5
{[%clk 0:00:45.2]} 35. Rb3 {[%clk 0:00:14.4]} 35... Be7 {[%clk 0:00:44]} 36.
Rxb6 {[%clk 0:00:12]} 36... Bf6 {[%clk 0:00:36]} 37. Bf4 {[%clk 0:00:10.8]}
37... Rd3+ {[%clk 0:00:34.5]} 38. Be3 {[%clk 0:00:10.5]} 38... a4 {[%clk
0:00:31]} 39. Rb5 {[%clk 0:00:09.2]} 39... a3 {[%clk 0:00:30.8]} 40. bxa3 {[%clk
0:00:07.3]} 40... Rxa3 {[%clk 0:00:31.7]} 41. Rxc5 {[%clk 0:00:05.5]} 41... Rxa2
{[%clk 0:00:31.8]} 42. Rc7+ {[%clk 0:00:06.3]} 42... Ke6 {[%clk 0:00:32.2]} 43.
c5 {[%clk 0:00:06.2]} 43... Rc2 {[%clk 0:00:32]} 44. Ke4 {[%clk 0:00:06.3]}
44... Rc4+ {[%clk 0:00:29.2]} 45. Kd3 {[%clk 0:00:05.9]} 45... Rc3+ {[%clk
0:00:29.8]} 46. Ke4 {[%clk 0:00:06.4]} 46... Rc4+ {[%clk 0:00:30.2]} 47. Kf3
{[%clk 0:00:07.1]} 47... Be7 {[%clk 0:00:22.3]} 48. Rc6+ {[%clk 0:00:07.1]}
48... Kd5 {[%clk 0:00:20.4]} 49. Rg6 {[%clk 0:00:06.9]} 49... Bf6 {[%clk
0:00:20.5]} 50. Bxh6 {[%clk 0:00:06.3]} 50... Rxc5 {[%clk 0:00:14]} 51. Bxg7
{[%clk 0:00:06.2]} 51... Rc3+ {[%clk 0:00:14.6]} 52. Kg2 {[%clk 0:00:06]} 1-0

[Event "*** SCC Grand Prix: Titled Tuesday Blitz"]
[Site "Chess.com"]
[Date "2020.06.02"]
[Round "10"]
[White "pedro_nascimento85"]
[Black "goldenpuppy"]
[Result "0-1"]
[WhiteElo "1942"]
[BlackElo "2185"]
[TimeControl "180+1"]
[EndTime "11:58:58 PDT"]
[Termination "goldenpuppy won on time"]

1. d4 {[%clk 0:03:00.9]} 1... Nf6 {[%clk 0:02:58.9]} 2. c4 {[%clk 0:02:59.9]}
2... e6 {[%clk 0:02:59.1]} 3. Nc3 {[%clk 0:02:59.4]} 3... Bb4 {[%clk 0:02:59.4]}
4. e3 {[%clk 0:02:59.9]} 4... O-O {[%clk 0:02:59.2]} 5. Ne2 {[%clk 0:03:00.2]}
5... d5 {[%clk 0:02:59.2]} 6. a3 {[%clk 0:03:00.2]} 6... Be7 {[%clk 0:02:57.9]}
7. Nf4 {[%clk 0:02:55.2]} 7... c6 {[%clk 0:02:56.3]} 8. Bd3 {[%clk 0:02:46.5]}
8... Nbd7 {[%clk 0:02:50.4]} 9. O-O {[%clk 0:02:42.9]} 9... Re8 {[%clk
0:02:50.4]} 10. Qf3 {[%clk 0:02:41]} 10... Bf8 {[%clk 0:02:50.2]} 11. Qh3 {[%clk
0:02:30.6]} 11... e5 {[%clk 0:02:46.6]} 12. Nh5 {[%clk 0:01:51.6]} 12... exd4
{[%clk 0:02:26.6]} 13. exd4 {[%clk 0:01:47.6]} 13... dxc4 {[%clk 0:02:25.8]} 14.
Bc2 {[%clk 0:01:23.7]} 14... Nxh5 {[%clk 0:02:22.8]} 15. Qxh5 {[%clk 0:01:21.4]}
15... Nf6 {[%clk 0:02:23]} 16. Qh4 {[%clk 0:01:18.8]} 16... h6 {[%clk
0:02:18.6]} 17. Rd1 {[%clk 0:01:04.6]} 17... Nd5 {[%clk 0:02:17.3]} 18. Qh5
{[%clk 0:00:48.7]} 18... Nxc3 {[%clk 0:02:06.9]} 19. bxc3 {[%clk 0:00:49.6]}
19... Qd5 {[%clk 0:02:06.2]} 20. Qh4 {[%clk 0:00:41.5]} 20... Bf5 {[%clk
0:02:02.9]} 21. Bxf5 {[%clk 0:00:35.5]} 21... Qxf5 {[%clk 0:02:03.8]} 22. Be3
{[%clk 0:00:31.7]} 22... Re4 {[%clk 0:02:02.5]} 23. Qg3 {[%clk 0:00:30.5]} 23...
Rg4 {[%clk 0:01:58.1]} 24. Qc7 {[%clk 0:00:27.2]} 24... Qc8 {[%clk 0:01:52.9]}
25. Qxc8 {[%clk 0:00:22.7]} 25... Rxc8 {[%clk 0:01:53.8]} 26. a4 {[%clk
0:00:23.1]} 26... a6 {[%clk 0:01:50]} 27. a5 {[%clk 0:00:22.2]} 27... Re4 {[%clk
0:01:48.8]} 28. Rab1 {[%clk 0:00:20.9]} 28... Rc7 {[%clk 0:01:47.9]} 29. Rb2
{[%clk 0:00:19.3]} 29... Ree7 {[%clk 0:01:46.5]} 30. Rdb1 {[%clk 0:00:18.5]}
30... Rcd7 {[%clk 0:01:45.1]} 31. h3 {[%clk 0:00:15.9]} 31... f5 {[%clk
0:01:42.7]} 32. g3 {[%clk 0:00:15.2]} 32... Kf7 {[%clk 0:01:42.8]} 33. Bf4
{[%clk 0:00:12.7]} 33... Ke8 {[%clk 0:01:41]} 34. Be5 {[%clk 0:00:12.1]} 34...
Kd8 {[%clk 0:01:38.7]} 35. f4 {[%clk 0:00:11.7]} 35... Kc8 {[%clk 0:01:38.2]}
36. Kg2 {[%clk 0:00:10.7]} 36... Re6 {[%clk 0:01:38]} 37. Kf3 {[%clk 0:00:10.9]}
37... Be7 {[%clk 0:01:34.9]} 38. g4 {[%clk 0:00:11.1]} 38... fxg4+ {[%clk
0:01:32.6]} 39. hxg4 {[%clk 0:00:11.6]} 39... Bd8 {[%clk 0:01:33]} 40. Rg2
{[%clk 0:00:09.5]} 40... Bxa5 {[%clk 0:01:32.1]} 41. f5 {[%clk 0:00:08.2]} 41...
Re8 {[%clk 0:01:31.8]} 42. g5 {[%clk 0:00:08.2]} 42... hxg5 {[%clk 0:01:30.1]}
43. Rxg5 {[%clk 0:00:08.2]} 43... Rf8 {[%clk 0:01:30.6]} 44. Ke4 {[%clk
0:00:06.9]} 44... Rff7 {[%clk 0:01:26.2]} 45. Rg3 {[%clk 0:00:05.4]} 45... Bc7
{[%clk 0:01:23.3]} 46. Rh1 {[%clk 0:00:05.5]} 46... Rde7 {[%clk 0:01:15.6]} 47.
Rh8+ {[%clk 0:00:04]} 47... Kd7 {[%clk 0:01:15.9]} 48. Rg6 {[%clk 0:00:03.2]}
48... c5 {[%clk 0:01:14.8]} 49. Rh7 {[%clk 0:00:02.7]} 49... cxd4 {[%clk
0:01:14.6]} 50. cxd4 {[%clk 0:00:02.6]} 50... c3 {[%clk 0:01:14.1]} 51. Kd3
{[%clk 0:00:02.7]} 51... Bxe5 {[%clk 0:01:13.3]} 52. dxe5 {[%clk 0:00:02.5]}
52... Rxf5 {[%clk 0:01:13.2]} 53. Kxc3 {[%clk 0:00:02]} 53... Rfxe5 {[%clk
0:01:13.2]} 54. Rgxg7 {[%clk 0:00:02.4]} 54... Rxg7 {[%clk 0:01:12.9]} 55. Rxg7+
{[%clk 0:00:01.7]} 55... Re7 {[%clk 0:01:13.8]} 56. Rg6 {[%clk 0:00:01.1]} 56...
Kc7 {[%clk 0:01:13.8]} 57. Rg3 {[%clk 0:00:01.7]} 57... b5 {[%clk 0:01:13.8]}
58. Rd3 {[%clk 0:00:02.6]} 58... Kb6 {[%clk 0:01:14.1]} 59. Kb4 {[%clk 0:00:03]}
59... Rc7 {[%clk 0:01:14.6]} 60. Kb3 {[%clk 0:00:03.6]} 60... Rc5 {[%clk
0:01:14.5]} 61. Rd6+ {[%clk 0:00:02.4]} 61... Rc6 {[%clk 0:01:13.7]} 62. Rd8
{[%clk 0:00:02]} 62... a5 {[%clk 0:01:14.2]} 63. Rb8+ {[%clk 0:00:02.1]} 63...
Kc5 {[%clk 0:01:14.5]} 64. Ra8 {[%clk 0:00:02.5]} 64... a4+ {[%clk 0:01:14.8]}
65. Ka3 {[%clk 0:00:03.1]} 65... Kc4 {[%clk 0:01:15.2]} 66. Rb8 {[%clk
0:00:03.3]} 66... Rc5 {[%clk 0:01:15]} 67. Rb7 {[%clk 0:00:03.5]} 67... Kc3
{[%clk 0:01:15.2]} 68. Rb8 {[%clk 0:00:01.4]} 68... Kc4 {[%clk 0:01:13.2]} 69.
Rb7 {[%clk 0:00:01.2]} 69... Rc6 {[%clk 0:01:12.5]} 70. Rb8 {[%clk 0:00:01.5]}
70... Kc5 {[%clk 0:01:12.9]} 71. Rb7 {[%clk 0:00:01.2]} 71... Rd6 {[%clk
0:01:13.2]} 0-1

[Event "*** SCC Grand Prix: Titled Tuesday Blitz"]
[Site "Chess.com"]
[Date "2020.06.02"]
[Round "10"]
[White "MasterKroket"]
[Black "GothamChess"]
[Result "0-1"]
[WhiteElo "2424"]
[BlackElo "2603"]
[TimeControl "180+1"]
[EndTime "11:58:59 PDT"]
[Termination "GothamChess won by resignation"]

1. d4 {[%clk 0:03:00.9]} 1... e6 {[%clk 0:02:54.8]} 2. c4 {[%clk 0:03:00]} 2...
b6 {[%clk 0:02:51.9]} 3. a3 {[%clk 0:02:59.3]} 3... Bb7 {[%clk 0:02:51.6]} 4.
Nc3 {[%clk 0:02:59.2]} 4... f5 {[%clk 0:02:46.1]} 5. d5 {[%clk 0:02:59.4]} 5...
Nf6 {[%clk 0:02:45.9]} 6. Nf3 {[%clk 0:02:58.7]} 6... Bd6 {[%clk 0:02:36.2]} 7.
g3 {[%clk 0:02:48.4]} 7... O-O {[%clk 0:02:33.1]} 8. Bg2 {[%clk 0:02:48.3]} 8...
Qe7 {[%clk 0:02:24.8]} 9. O-O {[%clk 0:02:44.4]} 9... Na6 {[%clk 0:02:17.7]} 10.
b4 {[%clk 0:02:35.6]} 10... c6 {[%clk 0:02:00.6]} 11. dxc6 {[%clk 0:02:29.9]}
11... dxc6 {[%clk 0:01:59.1]} 12. Bb2 {[%clk 0:02:26]} 12... Rad8 {[%clk
0:01:56.3]} 13. Qc2 {[%clk 0:02:24.4]} 13... c5 {[%clk 0:01:52.2]} 14. b5 {[%clk
0:02:07.2]} 14... Nb8 {[%clk 0:01:39.4]} 15. a4 {[%clk 0:02:07.3]} 15... Nbd7
{[%clk 0:01:28.5]} 16. a5 {[%clk 0:02:07.3]} 16... Bb8 {[%clk 0:01:29.1]} 17.
Rfd1 {[%clk 0:01:57.8]} 17... f4 {[%clk 0:01:10.5]} 18. a6 {[%clk 0:01:38.2]}
18... Ba8 {[%clk 0:01:04.4]} 19. Rd2 {[%clk 0:01:38.8]} 19... Ng4 {[%clk
0:00:58]} 20. Rad1 {[%clk 0:01:32]} 20... fxg3 {[%clk 0:00:51.7]} 21. hxg3
{[%clk 0:01:31.8]} 21... Ndf6 {[%clk 0:00:50.8]} 22. Rxd8 {[%clk 0:01:04.1]}
22... Rxd8 {[%clk 0:00:51.7]} 23. Rxd8+ {[%clk 0:01:04.3]} 23... Qxd8 {[%clk
0:00:52.6]} 24. Qd2 {[%clk 0:00:56.8]} 24... Qf8 {[%clk 0:00:47.8]} 25. Bh3
{[%clk 0:00:48.4]} 25... h5 {[%clk 0:00:27.5]} 26. Qg5 {[%clk 0:00:45.5]} 26...
Qd6 {[%clk 0:00:18.8]} 27. Bc1 {[%clk 0:00:39.2]} 27... Bxf3 {[%clk 0:00:09.1]}
28. exf3 {[%clk 0:00:35.1]} 28... Qd3 {[%clk 0:00:09.6]} 29. fxg4 {[%clk
0:00:15.1]} 29... hxg4 {[%clk 0:00:08]} 30. Qd2 {[%clk 0:00:10.1]} 30... Qxd2
{[%clk 0:00:04.7]} 31. Bxd2 {[%clk 0:00:11]} 31... gxh3 {[%clk 0:00:05.3]} 32.
Be1 {[%clk 0:00:05.7]} 32... Be5 {[%clk 0:00:04.5]} 33. Ne2 {[%clk 0:00:04.6]}
33... Ng4 {[%clk 0:00:02.6]} 34. f3 {[%clk 0:00:04.2]} 34... Ne3 {[%clk
0:00:03.2]} 35. Kh2 {[%clk 0:00:04.5]} 35... Nxc4 {[%clk 0:00:03.4]} 36. f4
{[%clk 0:00:04.4]} 36... Bf6 {[%clk 0:00:03.4]} 37. g4 {[%clk 0:00:04.4]} 37...
Nd6 {[%clk 0:00:03.7]} 38. g5 {[%clk 0:00:04.5]} 38... Bb2 {[%clk 0:00:04]} 39.
Bc3 {[%clk 0:00:04.2]} 39... Bxc3 {[%clk 0:00:02.4]} 40. Nxc3 {[%clk 0:00:04.1]}
40... Kf7 {[%clk 0:00:02.7]} 41. Kxh3 {[%clk 0:00:04.7]} 41... Kg6 {[%clk
0:00:03.3]} 42. Kg4 {[%clk 0:00:05.1]} 42... c4 {[%clk 0:00:02.4]} 43. Kg3
{[%clk 0:00:04.9]} 43... Kf5 {[%clk 0:00:02.6]} 44. Kf3 {[%clk 0:00:05.7]} 44...
e5 {[%clk 0:00:03.1]} 45. fxe5 {[%clk 0:00:05.6]} 45... Kxe5 {[%clk 0:00:04]}
46. Kg4 {[%clk 0:00:06.2]} 46... Kd4 {[%clk 0:00:04.3]} 47. Nd1 {[%clk
0:00:05.3]} 47... c3 {[%clk 0:00:04.5]} 48. Nxc3 {[%clk 0:00:02.7]} 48... Kxc3
{[%clk 0:00:05.1]} 49. Kh5 {[%clk 0:00:03.3]} 49... Kb4 {[%clk 0:00:04]} 50. Kg6
{[%clk 0:00:04.1]} 50... Ne4 {[%clk 0:00:03.9]} 0-1

[Event "*** SCC Grand Prix: Titled Tuesday Blitz"]
[Site "Chess.com"]
[Date "2020.06.02"]
[Round "10"]
[White "LileKoridze"]
[Black "IMDT02"]
[Result "1-0"]
[WhiteElo "2320"]
[BlackElo "2457"]
[TimeControl "180+1"]
[EndTime "11:58:59 PDT"]
[Termination "LileKoridze won on time"]

1. d4 {[%clk 0:03:00.9]} 1... Nf6 {[%clk 0:02:57.4]} 2. c4 {[%clk 0:03:00.3]}
2... e6 {[%clk 0:02:54.3]} 3. g3 {[%clk 0:02:59.9]} 3... d5 {[%clk 0:02:54.5]}
4. Bg2 {[%clk 0:03:00.2]} 4... Be7 {[%clk 0:02:54.9]} 5. Nf3 {[%clk 0:03:00.3]}
5... O-O {[%clk 0:02:55.4]} 6. O-O {[%clk 0:03:00.6]} 6... dxc4 {[%clk
0:02:55.4]} 7. Qc2 {[%clk 0:03:00.5]} 7... a6 {[%clk 0:02:55.1]} 8. Qxc4 {[%clk
0:03:00.5]} 8... b5 {[%clk 0:02:54.8]} 9. Qc2 {[%clk 0:03:00.9]} 9... Bb7 {[%clk
0:02:55.4]} 10. a3 {[%clk 0:02:49]} 10... Nbd7 {[%clk 0:02:53.5]} 11. b4 {[%clk
0:02:47.3]} 11... a5 {[%clk 0:02:39.7]} 12. bxa5 {[%clk 0:02:32.2]} 12... Rxa5
{[%clk 0:02:40.6]} 13. Bd2 {[%clk 0:02:31.5]} 13... Ra8 {[%clk 0:02:33.1]} 14.
Nc3 {[%clk 0:02:28.2]} 14... c6 {[%clk 0:02:11.6]} 15. a4 {[%clk 0:02:22.2]}
15... b4 {[%clk 0:02:06.4]} 16. Ne4 {[%clk 0:02:21.3]} 16... Nxe4 {[%clk
0:01:34.9]} 17. Qxe4 {[%clk 0:02:21]} 17... Qb6 {[%clk 0:01:30.2]} 18. Ng5
{[%clk 0:01:45.5]} 18... Nf6 {[%clk 0:01:07.7]} 19. Qd3 {[%clk 0:01:27.4]} 19...
Rfd8 {[%clk 0:00:58.3]} 20. Be3 {[%clk 0:00:58.8]} 20... h6 {[%clk 0:00:53.3]}
21. Ne4 {[%clk 0:00:57.5]} 21... Ba6 {[%clk 0:00:42.6]} 22. Qc2 {[%clk
0:00:46.2]} 22... Nd5 {[%clk 0:00:40.5]} 23. Bc1 {[%clk 0:00:36.1]} 23... Qxd4
{[%clk 0:00:38.9]} 24. Bb2 {[%clk 0:00:35.2]} 24... Qb6 {[%clk 0:00:35.4]} 25.
Rfe1 {[%clk 0:00:18.8]} 25... b3 {[%clk 0:00:33.8]} 26. Qc1 {[%clk 0:00:17.9]}
26... Nb4 {[%clk 0:00:32.1]} 27. Qc3 {[%clk 0:00:16.1]} 27... Bf8 {[%clk
0:00:12.7]} 28. Qxb3 {[%clk 0:00:16.2]} 28... Rab8 {[%clk 0:00:09.2]} 29. Ba3
{[%clk 0:00:10.9]} 29... Nd5 {[%clk 0:00:06.6]} 30. Qf3 {[%clk 0:00:08.6]} 30...
Bxa3 {[%clk 0:00:04.7]} 31. Qxa3 {[%clk 0:00:08.8]} 31... Qb4 {[%clk 0:00:04.5]}
32. Qf3 {[%clk 0:00:08.2]} 32... Qd4 {[%clk 0:00:02.7]} 33. Rad1 {[%clk
0:00:07.5]} 33... Qe5 {[%clk 0:00:03]} 34. Nc5 {[%clk 0:00:07.1]} 34... Bc8
{[%clk 0:00:02.8]} 35. h3 {[%clk 0:00:05]} 35... Re8 {[%clk 0:00:02.7]} 36. Nd3
{[%clk 0:00:04.8]} 36... Qf6 {[%clk 0:00:02.5]} 37. Qxf6 {[%clk 0:00:02.9]}
37... gxf6 {[%clk 0:00:03.4]} 38. Rc1 {[%clk 0:00:03.6]} 38... Bd7 {[%clk
0:00:03.4]} 39. Nc5 {[%clk 0:00:04]} 39... Bc8 {[%clk 0:00:03.8]} 40. Red1
{[%clk 0:00:03.7]} 40... Re7 {[%clk 0:00:04.2]} 41. e4 {[%clk 0:00:03.8]} 41...
Nb4 {[%clk 0:00:03.3]} 42. Rd8+ {[%clk 0:00:04]} 42... Kh7 {[%clk 0:00:03.7]}
43. Rcd1 {[%clk 0:00:03.2]} 43... Ra8 {[%clk 0:00:02.7]} 44. Nd7 {[%clk
0:00:03.4]} 44... Ra7 {[%clk 0:00:01.4]} 45. Nf8+ {[%clk 0:00:02.8]} 45... Kg7
{[%clk 0:00:01.6]} 46. Rxc8 {[%clk 0:00:03.5]} 1-0